fUSD/lending_fUSD_20260130
["ID","MTS","AMOUNT","RATE_DAILY","PERIOD"]
[404088262,1769806041028,-270.0455652,0.00017484,2]
[404088263,1769806041051,-3246.34406635,0.00017501,2]
[404088264,1769806041070,-1486.92693578,0.00017501,2]
[404088265,1769806082999,10000.0,0.00012889,2]
[404088266,1769806091057,0.01,0.00012889,2]
[404088267,1769806091080,9999.99,0.00012889,2]
[404088268,1769806101072,0.02,0.00012889,2]
[404088269,1769806101094,9999.98,0.00012889,2]
[404088270,1769806112147,0.03,0.00012889,2]
[404088271,1769806112168,9999.97,0.00012889,2]
[404088274,1769806131242,0.04,0.00012889,2]
[404088275,1769806131264,182.96,0.00012889,2]
[404088280,1769806231662,-7115.85,0.00013987,2]
[404088282,1769806231672,-151.0,0.00016337,2]
[404088284,1769806231681,-1029.0,0.00016529,2]
[404088285,1769806231690,-5533.02,0.00016785,2]
[404088286,1769806231699,-1200.0,0.00016819,2]
[404088287,1769806231709,-300.0,0.00016819,2]
[404088288,1769806231718,-315.42,0.00016819,2]
[404088289,1769806231727,-500.0,0.0001682,2]
[404088290,1769806231737,-280.96479434,0.0001682,2]
[404088291,1769806231746,-543.98356481,0.0001682,2]
[404088292,1769806231756,-500.0,0.0001682,2]
[404088293,1769806231765,-500.0,0.0001682,2]
[404088294,1769806231775,-500.0,0.0001682,2]
[404088295,1769806231784,-500.0,0.0001682,2]
[404088296,1769806231793,-500.0,0.0001682,2]
[404088297,1769806231802,-500.0,0.0001682,2]
[404088298,1769806231812,-500.0,0.0001682,2]
[404088299,1769806231823,-500.0,0.0001682,2]
[404088300,1769806231834,-500.0,0.0001682,2]
[404088301,1769806231844,-500.0,0.0001682,2]
[404088302,1769806231853,-500.0,0.0001682,2]
[404088303,1769806231863,-500.0,0.0001682,2]
[404088304,1769806231872,-500.0,0.0001682,2]
[404088305,1769806231882,-500.0,0.0001682,2]
[404088307,1769806231891,-500.0,0.0001682,2]
[404088309,1769806231900,-500.0,0.0001682,2]
[404088310,1769806231910,-500.0,0.0001682,2]
[404088312,1769806231920,-500.0,0.0001682,2]
[404088314,1769806231929,-500.0,0.0001682,2]
[404088316,1769806231939,-500.0,0.0001682,2]
[404088318,1769806231948,-500.0,0.0001682,2]
[404088320,1769806231957,-500.0,0.0001682,2]
[404088322,1769806231966,-500.0,0.0001682,2]
[404088324,1769806231975,-500.0,0.0001682,2]
[404088326,1769806231984,-500.0,0.0001682,2]
[404088328,1769806231993,-339.34590181,0.0001682,2]
[404088330,1769806232002,-500.0,0.0001682,2]
[404088332,1769806232012,-500.0,0.0001682,2]
[404088335,1769806232021,-500.0,0.0001682,2]
[404088338,1769806232030,-500.0,0.0001682,2]
[404088341,1769806232039,-500.0,0.0001682,2]
[404088344,1769806232048,-500.0,0.0001682,2]
[404088347,1769806232057,-500.0,0.0001682,2]
[404088350,1769806232066,-500.0,0.0001682,2]
[404088353,1769806232075,-500.0,0.0001682,2]
[404088356,1769806232084,-500.0,0.0001682,2]
[404088359,1769806232093,-500.0,0.0001682,2]
[404088361,1769806232102,-500.0,0.0001682,2]
[404088364,1769806232111,-500.0,0.0001682,2]
[404088367,1769806232120,-500.0,0.0001682,2]
[404088370,1769806232129,-500.0,0.0001682,2]
[404088372,1769806232139,-500.0,0.0001682,2]
[404088374,1769806232151,-500.0,0.0001682,2]
[404088376,1769806232161,-500.0,0.0001682,2]
[404088378,1769806232170,-500.0,0.0001682,2]
[404088380,1769806232179,-500.0,0.0001682,2]
[404088381,1769806232188,-627.20006699,0.0001682,2]
[404088382,1769806232197,-500.0,0.0001682,2]
[404088383,1769806232207,-500.0,0.0001682,2]
[404088384,1769806232216,-500.0,0.0001682,2]
[404088385,1769806232225,-500.0,0.0001682,2]
[404088386,1769806232235,-500.0,0.0001682,2]
[404088387,1769806232244,-500.0,0.0001682,2]
[404088388,1769806232253,-500.0,0.0001682,2]
[404088389,1769806232263,-500.0,0.0001682,2]
[404088390,1769806232272,-500.0,0.0001682,2]
[404088391,1769806232283,-500.0,0.0001682,2]
[404088392,1769806232297,-215.20678454,0.0001682,2]
[404088393,1769806232306,-500.0,0.0001682,2]
[404088394,1769806232315,-500.0,0.0001682,2]
[404088395,1769806232326,-500.0,0.0001682,2]
[404088396,1769806232338,-550.0,0.0001682,2]
[404088397,1769806232349,-500.0,0.0001682,2]
[404088398,1769806232362,-500.0,0.0001682,2]
[404088399,1769806232371,-500.0,0.0001682,2]
[404088400,1769806232381,-500.0,0.0001682,2]
[404088401,1769806232391,-62120.63541068,0.00016821,2]
[404088402,1769806232404,-1944.1331354,0.00016821,2]
[404088403,1769806232416,-43845.13496653,0.00016821,2]
[404088404,1769806232438,-500.0,0.00016821,2]
[404088405,1769806232449,-279.26125715,0.00016821,2]
[404088406,1769806232461,-572.84682148,0.00016821,2]
[404088407,1769806232476,-2109.64631498,0.00016821,2]
[404088408,1769806237974,-706.55591932,0.00016821,2]
[404088409,1769806237984,-500.0,0.00016821,2]
[404088454,1769806238413,-56019.94868062,0.00016821,2]
[404088459,1769806238451,-304.0,0.00016821,2]
[404088462,1769806238470,-26981.28139796,0.00016821,2]
[404088464,1769806238488,-702.10170352,0.00016821,2]
[404088466,1769806238499,-5193.58417775,0.00016821,2]
[404088469,1769806238511,-679.34591559,0.00016821,2]
[404088471,1769806238523,-402.307798,0.00016821,2]
[404088473,1769806238535,-78165.04052356,0.00016821,2]
[404088475,1769806238547,-837.35,0.00016821,2]
[404088477,1769806238559,-15801.2485822,0.00016821,2]
[404088593,1769806239807,-969.03,0.00016821,2]
[404088595,1769806239818,-425.63,0.00016821,2]
[404088597,1769806239828,-1191.98,0.00016821,2]
[404088607,1769806239914,-315.3758205,0.00016821,2]
[404088615,1769806239972,-420.86114321,0.00016821,2]
[404088617,1769806239983,-473.93335833,0.00016821,2]
[404088619,1769806239993,-3391.7295467,0.00016821,2]
[404088621,1769806240004,-1405.08006027,0.00016821,2]
[404088624,1769806240015,-86756.45013991,0.00016821,2]
[404088627,1769806240033,-2911.12206947,0.00016821,2]
[404088637,1769806240137,-500.0,0.00016821,2]
[404088638,1769806240148,-838.8376995,0.00016821,2]
[404088639,1769806240160,-8729.85355906,0.00016821,2]
[404088640,1769806240193,-922.18333418,0.00016821,2]
[404088641,1769806240205,-178538.44656413,0.00016821,2]
[404088642,1769806240216,-207.50353643,0.00016855,2]
[404088643,1769806240225,-568.58467958,0.00016899,2]
[404088644,1769806240235,-207.50353641,0.00016971,2]
[404088645,1769806240244,-207.50353641,0.00017087,2]
[404088646,1769806240253,-315.42,0.00017093,2]
[404088647,1769806240263,-207.50353641,0.00017203,2]
[404088648,1769806240272,-207.50353641,0.00017319,2]
[404088649,1769806240281,-159.0,0.00017365,2]
[404088650,1769806240292,-315.42,0.00017367,2]
[404088651,1769806240301,-207.50353641,0.00017436,2]
[404088652,1769806240311,-1074.73124185,0.00017501,2]
[404088653,1769806240320,-280.03725112,0.00017539,2]
[404088654,1769806240330,-207.50353641,0.00017552,2]
[404088655,1769806240339,-1000.0,0.0001756,2]
[404088656,1769806240348,-290.39862941,0.00017594,2]
[404088657,1769806240357,-2833.0,0.00017623,2]
[404088659,1769806240369,-315.42,0.00017641,2]
[404088661,1769806240378,-170.349784,0.00017647,2]
[404088663,1769806240387,-885.86649465,0.00017647,2]
[404088664,1769806240396,-301.1433787,0.00017649,2]
[404088665,1769806240405,-222.29041894,0.0001765,2]
[404088666,1769806240415,-586.62793255,0.0001765,2]
[404088667,1769806240424,-1034.88120825,0.0001765,2]
[404088668,1769806240433,-1548.12039536,0.0001765,2]
[404088669,1769806240443,-2094.6618,0.0001765,2]
[404088670,1769806240452,-207.50353641,0.00017668,2]
[404088671,1769806240461,-5433.0,0.00017714,2]
[404088673,1769806240470,-500.0,0.00017723,2]
[404088674,1769806240479,-500.0,0.00017723,2]
[404088675,1769806240488,-500.0,0.00017723,2]
[404088676,1769806240498,-150.0,0.00017723,2]
[404088677,1769806240507,-150.0,0.00017723,2]
[404088678,1769806240516,-215.78291863,0.00017723,2]
[404088679,1769806240525,-150.0,0.00017723,2]
[404088680,1769806240535,-150.0,0.00017723,2]
[404088681,1769806240544,-5433.0,0.0001777,2]
[404088682,1769806240553,-500.0,0.00017778,2]
[404088683,1769806240562,-500.0,0.00017778,2]
[404088684,1769806240571,-500.0,0.00017778,2]
[404088685,1769806240580,-189.31012859,0.00017778,2]
[404088686,1769806240590,-150.0,0.00017778,2]
[404088687,1769806240599,-150.0,0.00017778,2]
[404088688,1769806240607,-207.50353641,0.00017784,2]
[404088689,1769806240617,-306.888,0.0001782,2]
[404088690,1769806240626,-306.888,0.0001782,2]
[404088691,1769806240635,-306.88799,0.0001782,2]
[404088692,1769806240644,-306.888,0.0001782,2]
[404088693,1769806240653,-500.0,0.00017833,2]
[404088694,1769806240661,-500.0,0.00017833,2]
[404088695,1769806240670,-500.0,0.00017833,2]
[404088696,1769806240679,-150.0,0.00017833,2]
[404088697,1769806240688,-150.0,0.00017833,2]
[404088698,1769806240697,-183.97907001,0.000179,2]
[404088699,1769806240706,-160.57192077,0.000179,2]
[404088700,1769806240715,-207.50353641,0.000179,2]
[404088701,1769806240724,-212.08876731,0.000179,2]
[404088702,1769806240733,-315.44,0.00017915,2]
[404088703,1769806240742,-394.65701535,0.00017973,2]
[404088704,1769806240751,-613.67849247,0.00017973,2]
[404088705,1769806240760,-500.0,0.00017973,2]
[404088706,1769806240769,-500.0,0.00017973,2]
[404088707,1769806240778,-500.0,0.00017973,2]
[404088708,1769806240787,-500.0,0.00017973,2]
[404088709,1769806240796,-499.999999,0.00017973,2]
[404088710,1769806240805,-276.08746245,0.00017973,2]
[404088711,1769806240814,-500.0,0.00017973,2]
[404088712,1769806240823,-500.0,0.00017973,2]
[404088713,1769806240833,-500.0,0.00017973,2]
[404088714,1769806240842,-500.0,0.00017973,2]
[404088715,1769806240851,-500.0,0.00017973,2]
[404088716,1769806240860,-500.0,0.00017973,2]
[404088717,1769806240869,-500.0,0.00017973,2]
[404088718,1769806240880,-500.0,0.00017973,2]
[404088719,1769806240889,-500.0,0.00017973,2]
[404088720,1769806240899,-500.30766068,0.00017973,2]
[404088721,1769806240907,-597.78428373,0.00017973,2]
[404088722,1769806240916,-500.0,0.00017973,2]
[404088723,1769806240926,-500.0,0.00017973,2]
[404088724,1769806240935,-500.0,0.00017973,2]
[404088725,1769806240944,-150.0,0.00017973,2]
[404088726,1769806240953,-500.0,0.00017973,2]
[404088727,1769806240962,-500.0,0.00017973,2]
[404088728,1769806240971,-500.0,0.00017973,2]
[404088729,1769806240980,-500.0,0.00017973,2]
[404088730,1769806240988,-484.95031799,0.00017973,2]
[404088731,1769806240997,-500.0,0.00017973,2]
[404088732,1769806241007,-500.0,0.00017973,2]
[404088733,1769806241018,-500.0,0.00017973,2]
[404088734,1769806241029,-500.0,0.00017973,2]
[404088735,1769806241039,-500.0,0.00017973,2]
[404088736,1769806241049,-172.3572878,0.00017973,2]
[404088737,1769806241058,-463.18396516,0.00017973,2]
[404088738,1769806241067,-500.0,0.00017973,2]
[404088739,1769806241076,-161.19757088,0.00017973,2]
[404088740,1769806241085,-500.2222309,0.00017973,2]
[404088741,1769806241094,-500.0,0.00017973,2]
[404088742,1769806241104,-160.1438877,0.00017973,2]
[404088743,1769806241114,-500.0,0.00017973,2]
[404088744,1769806241124,-500.0,0.00017973,2]
[404088745,1769806241133,-548.32332639,0.00017973,2]
[404088746,1769806241142,-182.31008675,0.00017973,2]
[404088747,1769806241152,-500.0,0.00017973,2]
[404088748,1769806241160,-161.40183199,0.00017973,2]
[404088749,1769806241169,-500.0,0.00017973,2]
[404088750,1769806241178,-189.8103178,0.00017973,2]
[404088751,1769806241187,-3541.6692655,0.00017987,2]
[404088752,1769806241195,-1126.3274662,0.00017988,2]
[404088753,1769806241204,-616.0,0.00017997,2]
[404088754,1769806241214,-1409.0,0.00017997,2]
[404088755,1769806241224,-3479.0,0.00017997,2]
[404088756,1769806241234,-1334.0,0.00017997,2]
[404088757,1769806241243,-1270.0,0.00017997,2]
[404088758,1769806241252,-1204.0,0.00017997,2]
[404088759,1769806241262,-916.0,0.00017997,2]
[404088760,1769806241271,-5933.0,0.00017997,2]
[404088761,1769806241279,-2444.0,0.00017997,2]
[404088762,1769806241289,-6575.0,0.00017997,2]
[404088763,1769806241299,-300.0,0.00017999,2]
[404088764,1769806241308,-300.0,0.00017999,2]
[404088765,1769806241317,-946.0,0.00018,2]
[404088766,1769806241326,-150.0,0.00018,2]
[404088767,1769806241337,-150.0,0.00018,2]
[404088768,1769806241346,-78211.05801175,0.00018,2]
[404088769,1769806241356,-180294.59822883,0.00018,2]
[404088783,1769806242897,-512.6900035,0.00018,2]
[404088784,1769806243058,-5346.19791233,0.00018,2]
[404088785,1769806243069,-6258.32063076,0.00018,2]
[404088786,1769806243135,-1452.117744,0.00018,2]
[404088787,1769806243173,-5533.51037257,0.00018,2]
[404088788,1769806243184,-1368.22960027,0.00018,2]
[404088789,1769806243202,-393.39206397,0.00018,2]
[404088790,1769806243214,-2584.11823244,0.00018,2]
[404088841,1769806245926,-18728.72,0.00018,2]
[404088842,1769806246005,-14615.99999999,0.00018,2]
[404088843,1769806246033,-17608.41582055,0.00018,2]
[404088844,1769806246086,-918.29832777,0.00018,2]
[404088849,1769807362224,-377.0,0.0001455,2]
[404088850,1769807362243,-377.0,0.00015859,2]
[404088851,1769807362264,-151.0,0.00015899,2]
[404088852,1769807362283,-151.0,0.00015899,2]
[404088853,1769807362303,-151.0,0.000159,2]
[404088854,1769807362324,-151.0,0.00015901,2]
[404088855,1769807362344,-166.66,0.0001597,2]
[404088856,1769807362363,-145.26,0.00016184,2]
[404088859,1769807431815,-151.0,0.00015909,2]
[404088860,1769807431825,-151.0,0.00015915,2]
[404088861,1769807431834,-151.0,0.00015923,2]
[404088862,1769807431843,-151.0,0.00015927,2]
[404088863,1769807431852,-256.71657503,0.00016164,2]
[404088864,1769807431874,-243.28342497,0.00016164,2]
[404088865,1769807431883,-500.0,0.00016192,2]
[404088866,1769807431892,-150.0,0.00016195,2]
[404088867,1769807431901,-216.93470814,0.000162,2]
[404088868,1769807431911,-1000.0,0.00016253,2]
[404088869,1769807431919,-1675.0,0.00016265,2]
[404088870,1769807431928,-3240.0,0.00016276,2]
[404088871,1769807431938,-1200.0,0.00016305,2]
[404088872,1769807431947,-300.0,0.00016306,2]
[404088873,1769807431956,-166.66,0.00016307,2]
[404088874,1769807431965,-150.99,0.00016307,2]
[404088875,1769807431975,-7966.40406217,0.00016307,2]
[404088876,1769807431986,-285.26095391,0.00016307,2]
[404088877,1769807432003,-391.88,0.00016307,2]
[404088878,1769807432024,-645.79236201,0.00016307,2]
[404088888,1769807437943,-710.65262191,0.00016307,2]
[404088889,1769807437953,-174.46,0.00016307,2]
[404088890,1769807437962,-293.72,0.00016356,2]
[404088891,1769807437972,-493.39625374,0.00016391,2]
[404088892,1769807437999,-285.60374626,0.00016391,2]
[404088893,1769807438010,-293.72,0.00016408,2]
[404088894,1769807438019,-550.0,0.0001641,2]
[404088895,1769807438029,-299.99,0.00016411,4]
[404088896,1769807438039,-925.41442651,0.00016411,2]
[404088897,1769807438059,-74.57557349,0.00016411,2]
[404088898,1769807438069,-465.15,0.00016422,2]
[404088899,1769807438078,-601.0,0.00016442,2]
[404088900,1769807438087,-500.0,0.0001646,2]
[404088901,1769807438096,-177.14095391,0.0001646,2]
[404088902,1769807438106,-293.72,0.0001646,2]
[404088903,1769807438115,-1531.0,0.0001647,2]
[404088904,1769807438125,-1065.0,0.00016488,2]
[404088905,1769807438135,-293.72,0.00016513,2]
[404088906,1769807438144,-368.39,0.00016521,2]
[404088907,1769807438154,-724.26881792,0.00016534,2]
[404088911,1769807438206,-218.93118208,0.00016534,2]
[404088912,1769807438216,-250.0,0.00016541,2]
[404088913,1769807438226,-396.18,0.00016564,2]
[404088914,1769807438235,-293.72,0.00016565,2]
[404088915,1769807438245,-1401.04,0.00016577,2]
[404088916,1769807438255,-293.72,0.00016617,2]
[404088917,1769807438264,-768.23406117,0.00016619,2]
[404088918,1769807438277,-269.05405731,0.00016619,2]
[404088968,1769807440223,-6913.50557726,0.00016619,2]
[404088969,1769807440234,-498.56809228,0.00016619,2]
[404088970,1769807440248,-796.04788305,0.00016619,2]
[404088971,1769807440282,-40700.15900807,0.00016619,2]
[404088972,1769807440294,-4273.98579677,0.00016619,2]
[404088973,1769807440306,-826.28059818,0.00016619,2]
[404088974,1769807440317,-970.40056164,0.00016619,2]
[404088975,1769807440392,-2232.52460327,0.00016619,2]
[404088976,1769807440452,-684.16545354,0.00016619,2]
[404089031,1769807443448,-9980.553576,0.00016619,2]
[404089032,1769807443484,-1269.88545203,0.00016619,2]
[404089033,1769807443497,-2891.81037228,0.00016619,2]
[404089034,1769807443619,-341.85653177,0.00016619,2]
[404089035,1769807443631,-1137.79536712,0.00016619,2]
[404089052,1769807446210,-3414.67100826,0.00016619,2]
[404089053,1769807446220,-134.01213748,0.00016643,2]
[404089054,1769807446266,-32.64786252,0.00016643,2]
[404089055,1769807446275,-293.72,0.00016669,2]
[404089056,1769807446285,-293.72,0.00016721,2]
[404089060,1769807446626,-197.54962748,0.00016773,2]
[404089061,1769807446652,-96.17037252,0.00016773,2]
[404089062,1769807446661,-293.72,0.00016826,2]
[404089064,1769807446671,-151.0,0.00016875,2]
[404089066,1769807446680,-293.72,0.00016878,2]
[404089067,1769807446692,-500.0,0.00016899,2]
[404089068,1769807446703,-341.76962748,0.00016923,2]
[404089069,1769807446722,-523.49586585,0.00016923,2]
[404089071,1769807446736,-416.30793719,0.00016923,2]
[404089072,1769807446754,-31.42656948,0.00016923,2]
[404089073,1769807446765,-293.72,0.0001693,2]
[404089074,1769807446774,-166.66,0.00016979,2]
[404089075,1769807446783,-293.72,0.00016982,2]
[404089076,1769807446793,-1295.0,0.00017021,2]
[404089077,1769807446802,-293.72,0.00017034,2]
[404089078,1769807446811,-292.0,0.00017042,2]
[404089079,1769807446820,-293.72,0.00017086,2]
[404089080,1769807446830,-209.40437684,0.00017099,2]
[404089081,1769807446840,-442.51288275,0.00017099,2]
[404089082,1769807446848,-854.2589148,0.00017099,2]
[404089083,1769807446857,-4180.0,0.000171,3]
[404089084,1769807446865,-200.0,0.00017108,2]
[404089085,1769807446873,-293.72,0.00017138,2]
[404089086,1769807446882,-217.15233878,0.00017154,2]
[404089087,1769807446891,-293.72,0.00017191,2]
[404089088,1769807446902,-225.18697532,0.00017209,2]
[404089089,1769807446911,-200.0,0.00017228,2]
[404089090,1769807446920,-293.72,0.00017243,2]
[404089091,1769807446932,-233.51889341,0.00017264,2]
[404089092,1769807446943,-293.72,0.00017295,2]
[404089093,1769807446954,-166.66,0.00017315,2]
[404089094,1769807446964,-242.15909246,0.00017319,2]
[404089095,1769807446973,-467.0,0.00017322,2]
[404089096,1769807446983,-293.72,0.00017347,2]
[404089097,1769807446992,-500.0,0.00017362,2]
[404089098,1769807447002,-251.11897888,0.00017374,2]
[404089099,1769807447011,-396.18,0.00017392,2]
[404089100,1769807447020,-260.4103811,0.00017429,2]
[404089101,1769807447030,-250.36591804,0.00017448,2]
[404089102,1769807447039,-660.71961889,0.00017448,2]
[404089103,1769807447049,-1165.58772532,0.00017448,2]
[404089104,1769807447058,-1743.64952786,0.00017448,2]
[404089105,1769807447067,-2359.2195,0.00017448,2]
[404089106,1769807447076,-200.0,0.00017479,2]
[404089107,1769807447086,-377.0,0.00017484,2]
[404089108,1769807447096,-270.0455652,0.00017484,2]
[404089109,1769807447105,-377.0,0.0001749,2]
[404089110,1769807447115,-377.0,0.00017496,2]
[404089111,1769807447124,-195.0,0.00017507,2]
[404089112,1769807447134,-280.03725112,0.00017539,2]
[404089113,1769807447144,-377.0,0.00017546,2]
[404089114,1769807447153,-377.0,0.00017551,2]
[404089115,1769807447163,-377.0,0.00017563,2]
[404089116,1769807447172,-377.0,0.00017584,2]
[404089117,1769807447182,-290.39862941,0.00017594,2]
[404089118,1769807447191,-3908.73187565,0.000176,5]
[404089119,1769807447204,-1623.26812435,0.000176,5]
[404089120,1769807447214,-200.0,0.00017624,2]
[404089121,1769807447224,-77.93195565,0.00017628,2]
[404089122,1769807447236,-299.06804435,0.00017628,2]
[404089123,1769807447245,-44.47111051,0.00017631,2]
[404089124,1769807447256,-332.52888949,0.00017631,2]
[404089125,1769807447266,-885.86649465,0.00017647,2]
[404089126,1769807447276,-301.1433787,0.00017649,2]
[404089127,1769807447285,-166.66,0.00017651,2]
[404089128,1769807447295,-377.0,0.00017668,2]
[404089129,1769807447304,-500.0,0.00017723,2]
[404089130,1769807447314,-150.0,0.00017723,2]
[404089131,1769807447323,-150.0,0.00017723,2]
[404089132,1769807447333,-150.0,0.00017723,2]
[404089133,1769807447342,-500.0,0.00017723,2]
[404089134,1769807447351,-150.0,0.00017723,2]
[404089135,1769807447361,-500.0,0.00017723,2]
[404089136,1769807447371,-153.98209537,0.00017723,2]
[404089137,1769807447381,-481.43624219,0.00017736,2]
[404089138,1769807447391,-200.0,0.00017753,2]
[404089139,1769807447400,-377.0,0.00017771,2]
[404089140,1769807447410,-500.0,0.00017778,2]
[404089141,1769807447419,-213.39557034,0.00017778,2]
[404089142,1769807447429,-150.0,0.00017778,2]
[404089143,1769807447438,-593.00645443,0.00017778,2]
[404089144,1769807447447,-254.25101827,0.00017778,2]
[404089145,1769807447457,-500.0,0.00017778,2]
[404089146,1769807447467,-2517.90472043,0.000178,2]
[404089147,1769807447499,-2563.96974624,0.000178,2]
[404089148,1769807447509,-2969.03025376,0.00017811,2]
[404089168,1769808544223,483.0,0.00021,30]
[404089169,1769808554185,-212.59,0.00013506,2]
[404089170,1769808554207,-1200.0,0.00014893,2]
[404089171,1769808554228,-23878.82023752,0.00014894,2]
[404089172,1769808554262,-53143.7559259,0.00015,3]
[404089173,1769808554286,-160.14,0.00015748,2]
[404089174,1769808554307,-162168.29143343,0.00016,4]
[404089175,1769808554332,-76348.96740315,0.00016107,2]
[404089176,1769808562130,-1816.07309685,0.00016107,2]
[404089177,1769808562152,-200.0,0.00016197,2]
[404089178,1769808562174,-151.0,0.00016197,2]
[404089179,1769808562199,-151.0,0.00016197,2]
[404089180,1769808562220,-151.0,0.00016197,2]
[404089181,1769808562241,-151.0,0.00016197,2]
[404089182,1769808562263,-151.0,0.00016197,2]
[404089183,1769808562284,-500.0,0.00016197,2]
[404089184,1769808562305,-500.0,0.00016197,2]
[404089185,1769808562325,-500.0,0.00016197,2]
[404089186,1769808562346,-500.0,0.00016197,2]
[404089187,1769808562369,-500.0,0.00016197,2]
[404089188,1769808562390,-500.0,0.00016197,2]
[404089189,1769808562417,-500.0,0.00016197,2]
[404089190,1769808562439,-217.44398715,0.00016197,2]
[404089222,1769808632590,-282.55601285,0.00016197,2]
[404089223,1769808632599,-696.0,0.00016395,2]
[404089224,1769808632608,-200.0,0.00016525,2]
[404089225,1769808632618,-864.6,0.00016534,2]
[404089226,1769808632627,-779.63816182,0.00016583,2]
[404089227,1769808632635,-151.0,0.00016585,2]
[404089228,1769808632644,-151.0,0.00016585,2]
[404089229,1769808632654,-151.0,0.00016586,2]
[404089230,1769808632663,-151.0,0.0001659,2]
[404089231,1769808632672,-500.0,0.0001663,2]
[404089232,1769808632681,-163.0,0.0001672,2]
[404089233,1769808632692,-200.0,0.00016852,2]
[404089234,1769808632701,-1604.12,0.00016864,2]
[404089235,1769808632710,-526.08582533,0.00016892,2]
[404089236,1769808632722,-129.52417467,0.00016892,2]
[404089237,1769808632733,-250.0,0.00017,2]
[404089238,1769808632742,-150.99,0.00017,2]
[404089239,1769808632751,-35.11921006,0.00017077,2]
[404089240,1769808632763,-322.43061325,0.00017077,2]
[404089241,1769808632774,-842.45017669,0.00017077,2]
[404089242,1769808632783,-816.85715468,0.00017078,2]
[404089243,1769808632792,-209.40437684,0.00017084,2]
[404089244,1769808632801,-787.91318272,0.00017084,2]
[404089245,1769808632820,-66.34573208,0.00017084,2]
[404089246,1769808632830,-217.15233878,0.00017139,2]
[404089247,1769808632839,-225.18697532,0.00017194,2]
[404089248,1769808632848,-233.51889341,0.00017249,2]
[404089249,1769808632858,-242.15909246,0.00017304,2]
[404089250,1769808632867,-251.11897888,0.00017359,2]
[404089251,1769808632875,-168.0,0.00017392,2]
[404089252,1769808632885,-601.5862699,0.00017394,2]
[404089253,1769808632894,-260.4103811,0.00017414,2]
[404089254,1769808632903,-200.0,0.00017459,2]
[404089255,1769808632912,-270.0455652,0.00017469,2]
[404089256,1769808632921,-200.0,0.00017471,2]
[404089257,1769808632930,-168.0,0.00017511,2]
[404089258,1769808632943,-280.03725112,0.00017524,2]
[404089259,1769808632952,-655.61,0.00017525,2]
[404089260,1769808632961,-200.0,0.00017529,2]
[404089261,1769808632970,-290.39862941,0.00017579,2]
[404089262,1769808632979,-610.04437042,0.00017628,2]
[404089263,1769808633004,-808.01349314,0.00017628,2]
[404089264,1769808633016,-837.98650686,0.00017628,2]
[404089265,1769808633027,-871.98025582,0.00017628,2]
[404089266,1769808633038,-318.56053725,0.00017628,2]
[404089267,1769808633049,-505.89005358,0.00017632,2]
[404089268,1769808633075,-379.97644107,0.00017632,2]
[404089269,1769808633084,-218.58355893,0.00017634,2]
[404089270,1769808638338,-82.55981977,0.00017634,2]
[404089271,1769808638349,-789.03151611,0.00017638,2]
[404089272,1769808638402,-177.55104409,0.00017638,2]
[404089273,1769808638413,-822.29955591,0.00017638,2]
[404089274,1769808638426,-1000.51193,0.00017638,2]
[404089275,1769808638439,-433.34,0.00017638,2]
[404089276,1769808638521,-1550.56786155,0.00017638,2]
[404089277,1769808638534,-3652.33950634,0.00017638,2]
[404089278,1769808638545,-159.04594923,0.00017703,2]
[404089279,1769808638555,-157.91969894,0.00017723,2]